bitfinex/quotes_BTCUSD_20260308
["timestamp","ask_amount","ask_price","bid_price","bid_amount"]
[1773012773303,0.07554725,66446.0,66434.0,0.01534173]
[1773012774157,0.07554725,66446.0,66435.0,0.07526153]
[1773012774784,0.00152,66455.0,66439.0,0.34103637]
[1773012774986,0.1202114,66458.0,66442.0,0.34103637]
[1773012775187,0.00152,66457.0,66443.0,0.34103637]
[1773012775392,0.00152,66457.0,66444.0,0.0156067]
[1773012775598,0.11869102,66458.0,66444.0,0.0156067]
[1773012775806,0.12021102,66458.0,66444.0,0.0156067]
[1773012776228,0.12021102,66458.0,66445.0,0.0752502]
[1773012776441,0.03784547,66457.0,66446.0,0.00152]
[1773012776796,0.03806548,66457.0,66446.0,0.00152]
[1773012777805,0.00022001,66457.0,66447.0,0.01551573]
[1773012778217,0.00022001,66457.0,66448.0,0.0752468]
[1773012778425,0.00022001,66460.0,66449.0,0.01533725]
[1773012778623,0.07545332,66460.0,66448.0,0.0752468]
[1773012779256,0.03784547,66458.0,66449.0,0.00152]
[1773012779458,0.03784547,66457.0,66448.0,0.00152]
[1773012780040,0.33334587,66454.0,66441.0,0.07525441]
[1773012780243,0.11308775,66452.0,66443.0,0.07525247]
[1773012780443,0.11308775,66452.0,66443.0,0.07677247]
[1773012780767,0.33334587,66450.0,66442.0,0.00152]
[1773012780967,0.07524228,66452.0,66442.0,0.00152]
[1773012780968,0.03784547,66449.0,66442.0,0.07677346]
[1773012781169,0.03784547,66449.0,66442.0,0.00152]
[1773012781370,0.03784547,66449.0,66439.0,0.07537488]
[1773012781598,0.33334587,66447.0,66433.0,0.0002]
[1773012781798,0.33334587,66443.0,66433.0,0.0002]
[1773012781958,0.03784547,66442.0,66433.0,0.0002]
[1773012782291,0.03784547,66442.0,66433.0,0.07546359]
[1773012782292,0.07525473,66441.0,66433.0,0.07546359]
[1773012782602,0.07525473,66441.0,66433.0,0.0002]
[1773012782797,0.03784547,66440.0,66433.0,1e-08]
[1773012782997,0.07525473,66441.0,66433.0,1e-08]
[1773012782998,0.03784547,66438.0,66433.0,1e-08]
[1773012783500,0.03784547,66436.0,66426.0,1e-08]
[1773012783651,0.32351601,66433.0,66426.0,1e-08]
[1773012783853,0.03784547,66431.0,66426.0,1e-08]
[1773012784055,0.03784547,66428.0,66421.0,0.00048]
[1773012784270,0.03784547,66425.0,66419.0,0.0002]
[1773012784669,0.03784547,66425.0,66416.0,0.07551274]
[1773012784670,0.32351601,66425.0,66416.0,0.07551274]
[1773012784877,0.03784547,66424.0,66416.0,0.07551274]
[1773012785409,0.03784547,66424.0,66416.0,0.07563076]
[1773012785608,0.03784547,66423.0,66412.0,0.0002]
[1773012785810,0.32351601,66420.0,66412.0,0.0002]
[1773012785995,0.03784547,66417.0,66404.0,1e-08]
[1773012786197,0.00011824,66420.0,66407.0,0.306825]
[1773012786198,0.00163824,66420.0,66407.0,0.306825]
[1773012786418,0.07679475,66424.0,66412.0,0.30688288]
[1773012786653,0.07526966,66428.0,66413.0,0.01563319]
[1773012786796,0.07678966,66428.0,66413.0,0.01563319]
[1773012786996,0.33620763,66433.0,66414.0,0.30688288]
[1773012786997,0.03972557,66433.0,66414.0,0.30688288]
[1773012787202,0.14991813,66439.0,66418.0,0.30688288]
[1773012787428,0.07700651,66440.0,66422.0,0.01434281]
[1773012787601,0.33620763,66437.0,66423.0,0.00152]
[1773012787830,0.03972557,66436.0,66417.0,0.01434281]
[1773012788031,0.03972557,66436.0,66421.0,0.01434281]
[1773012788235,0.11673208,66440.0,66422.0,0.32105181]
[1773012788575,0.07700651,66440.0,66423.0,0.07527513]
[1773012788732,0.03972557,66439.0,66424.0,0.00152]
[1773012789524,0.03643306,66438.0,66423.0,0.07527513]
[1773012789725,0.03643306,66438.0,66424.0,0.00152]
[1773012790359,0.03665307,66438.0,66424.0,0.00152]
[1773012790538,0.07525926,66437.0,66425.0,0.07527286]
[1773012790920,0.11169232,66437.0,66425.0,0.07527286]
[1773012792707,0.07525926,66437.0,66425.0,0.07527286]
[1773012792943,0.11169232,66437.0,66425.0,0.07527286]
[1773012793217,0.00022001,66438.0,66426.0,0.01329721]
[1773012793407,0.07547817,66438.0,66427.0,0.01329721]
[1773012793992,1e-08,66445.0,66426.0,0.01329721]
[1773012794190,0.00022001,66452.0,66430.0,0.01312665]
[1773012794405,0.07523674,66457.0,66435.0,0.01312665]
[1773012794755,0.00561,66458.0,66441.0,0.30688288]
[1773012794963,0.00045001,66464.0,66444.0,0.30688288]
[1773012795170,0.07567892,66464.0,66447.0,0.01306738]
[1773012795334,0.33620763,66463.0,66448.0,0.00152]
[1773012795538,0.03643306,66462.0,66449.0,0.00152]
[1773012796145,0.33620763,66462.0,66449.0,0.00152]
[1773012796339,0.03643306,66461.0,66449.0,0.00152]
[1773012796771,0.07523322,66460.0,66450.0,0.00152]
[1773012797331,0.11166628,66460.0,66450.0,0.00152]
[1773012798055,0.00022001,66452.0,66450.0,0.00152]
[1773012798233,0.00022001,66452.0,66446.0,0.00152]
[1773012798671,0.00022001,66452.0,66447.0,0.07524794]
[1773012801857,0.03643306,66451.0,66445.0,0.07524982]
[1773012805998,0.07545455,66459.0,66446.0,0.01141899]
[1773012806207,0.00152,66458.0,66446.0,0.01141899]
[1773012806410,0.03795306,66458.0,66445.0,0.07524982]
[1773012806606,0.11166967,66457.0,66445.0,0.07524982]
[1773012807618,0.00022001,66459.0,66445.0,0.07524982]
[1773012807814,0.00197001,66464.0,66448.0,0.30688288]
[1773012808031,0.07719954,66464.0,66449.0,0.0381319]
[1773012808248,0.07534865,66463.0,66451.0,0.0381319]
[1773012808597,0.00022001,66466.0,66452.0,0.07524228]
[1773012808970,1e-08,66474.0,66456.0,0.30688288]
[1773012809135,1e-08,66474.0,66458.0,0.0381319]
[1773012809372,1e-08,66474.0,66460.0,0.0381319]
[1773012809966,1e-08,66474.0,66460.0,0.30688288]
[1773012810200,1e-08,66474.0,66462.0,0.0381319]
[1773012810344,1e-08,66474.0,66464.0,0.0381319]
[1773012811071,1e-08,66474.0,66465.0,0.07522756]
[1773012813176,0.0003607,66479.0,66465.0,0.07522756]
[1773012813394,1e-08,66481.0,66468.0,0.31304157]
[1773012813569,1e-08,66481.0,66471.0,0.0381319]
[1773012813768,0.07520956,66481.0,66465.0,0.07522756]
[1773012814030,1e-08,66481.0,66466.0,0.00152]
[1773012814164,0.03643307,66481.0,66466.0,0.0396519]
[1773012814361,0.11164282,66481.0,66466.0,0.0396519]
[1773012814607,0.31508379,66480.0,66465.0,0.07522756]
[1773012814914,0.31508379,66477.0,66467.0,0.00152]
[1773012815075,0.07521624,66475.0,66465.0,0.07622756]
[1773012815274,0.07521624,66475.0,66466.0,0.00152]
[1773012815553,0.07521624,66475.0,66466.0,0.00252]
[1773012815762,0.31508379,66474.0,66466.0,0.001]
[1773012815901,0.31508379,66471.0,66459.0,0.07523407]
[1773012816106,0.31493166,66470.0,66460.0,0.00152]
[1773012816310,0.03643306,66469.0,66460.0,0.00152]
[1773012816515,0.03643306,66474.0,66461.0,0.00152]
[1773012816828,0.03643306,66470.0,66461.0,0.00152]
[1773012817235,0.11165531,66470.0,66462.0,0.07523095]
[1773012819287,0.11165531,66470.0,66456.0,0.07523435]
[1773012819288,0.03509071,66468.0,66453.0,0.07524066]
[1773012819495,0.07506996,66470.0,66456.0,0.00152]
[1773012819496,0.03509071,66467.0,66456.0,0.00152]
[1773012819723,0.07506996,66470.0,66453.0,0.07524066]
[1773012819724,0.03509071,66464.0,66453.0,0.07524066]
[1773012820131,0.31508379,66461.0,66452.0,0.00011842]
[1773012820312,0.00152,66465.0,66452.0,0.07535977]
[1773012820514,0.03509071,66464.0,66452.0,0.07687977]
[1773012820995,0.31508379,66462.0,66452.0,0.00011842]
[1773012821199,0.00152,66465.0,66445.0,0.07524943]
[1773012821200,0.07523548,66458.0,66445.0,0.07524943]
[1773012821408,0.3501745,66455.0,66446.0,0.00152]
[1773012821606,0.35002222,66455.0,66446.0,0.00152]
[1773012821807,0.35002222,66455.0,66445.0,0.07524943]
[1773012822014,0.35002222,66455.0,66447.0,0.00152]
[1773012822015,0.03509071,66455.0,66447.0,0.00152]
[1773012822212,0.03509071,66453.0,66444.0,0.00152]
[1773012822389,0.03509071,66452.0,66444.0,0.00152]
[1773012822792,0.03509071,66452.0,66443.0,0.07545204]
[1773012823002,0.03509071,66452.0,66445.0,0.00152]
[1773012823404,0.03509071,66452.0,66445.0,0.07676935]
[1773012823608,0.11033341,66452.0,66445.0,0.07676935]
[1773012823811,0.11033341,66452.0,66445.0,0.07524935]
[1773012824215,0.11033341,66452.0,66445.0,0.07676935]
[1773012824649,0.11033326,66452.0,66445.0,0.00152]
[1773012824904,0.03509071,66452.0,66444.0,0.07677133]
[1773012825496,0.03520897,66458.0,66444.0,0.07677133]
[1773012825694,0.07522859,66465.0,66446.0,0.31304157]
[1773012825821,0.07674707,66466.0,66450.0,0.31304157]
[1773012826010,0.07674707,66466.0,66452.0,0.03533718]
[1773012826213,0.00174001,66471.0,66454.0,0.03533718]
[1773012826414,0.07696081,66471.0,66456.0,0.31304157]
[1773012826620,0.11244602,66471.0,66457.0,0.00152]
[1773012827366,0.11092602,66471.0,66458.0,0.07523548]
[1773012827543,0.03570522,66471.0,66458.0,0.07523548]
[1773012827750,0.07583531,66471.0,66459.0,0.00955094]
[1773012827963,0.00061451,66471.0,66459.0,0.00955094]
[1773012828193,0.07521511,66476.0,66461.0,0.00938837]
[1773012828433,0.31508379,66474.0,66458.0,0.07523548]
[1773012828598,0.03509071,66471.0,66458.0,0.07523548]
[1773012829367,0.03509071,66471.0,66459.0,0.00152]
[1773012829573,0.03509071,66471.0,66460.0,0.07523322]
[1773012830407,0.0752195,66474.0,66460.0,0.07523322]
[1773012830615,0.03509071,66475.0,66462.0,0.00906698]
[1773012831004,0.11030699,66475.0,66462.0,0.00906698]
[1773012831526,0.03509071,66474.0,66460.0,0.07523322]
[1773012831746,0.11030921,66473.0,66460.0,0.07523322]
[1773012833076,0.0752185,66473.0,66460.0,0.07523322]
[1773012833224,0.03509071,66472.0,66460.0,0.07523322]
[1773012833605,0.03509071,66472.0,66461.0,0.00152]
[1773012833801,0.03509071,66470.0,66461.0,0.00152]
[1773012834005,0.03509071,66470.0,66452.0,0.07524175]
[1773012834006,0.31508379,66467.0,66448.0,0.07524667]
[1773012834210,0.31508379,66463.0,66448.0,0.07524667]
[1773012834523,0.03509071,66458.0,66449.0,0.00152]
[1773012834727,0.03509071,66457.0,66447.0,0.07524794]
[1773012835041,0.00152,66462.0,66447.0,0.07676794]
[1773012835042,0.03509071,66456.0,66447.0,0.07676794]
[1773012835239,0.03509071,66455.0,66447.0,0.07676794]
[1773012835447,0.03509071,66453.0,66447.0,0.00152]
[1773012835649,0.03509071,66453.0,66446.0,0.075449]
[1773012836054,0.03509071,66453.0,66446.0,0.076969]
[1773012836219,0.0352089,66453.0,66446.0,0.076969]
[1773012836850,0.00011819,66453.0,66446.0,0.076969]
[1773012837051,0.00011819,66453.0,66446.0,0.11230618]
[1773012837248,0.07523441,66459.0,66447.0,0.03533718]
[1773012837450,0.07523441,66459.0,66447.0,0.03573168]
[1773012837820,0.07523441,66459.0,66448.0,0.0752468]
[1773012838233,0.03509071,66459.0,66448.0,0.0752468]
[1773012838434,0.07675399,66460.0,66448.0,0.11058398]
[1773012838973,0.00152,66467.0,66452.0,0.03533718]
[1773012839150,0.00152,66467.0,66454.0,0.03533718]
[1773012839839,0.14994504,66469.0,66454.0,0.03533718]
[1773012840028,0.07522416,66468.0,66455.0,0.07523888]
[1773012840670,0.03509071,66465.0,66455.0,0.07523888]
[1773012840874,0.03509071,66463.0,66455.0,0.07523888]
[1773012842092,0.1103211,66463.0,66455.0,0.07523888]
[1773012845840,0.07523039,66463.0,66455.0,0.07523888]
[1773012846240,0.29479269,66461.0,66447.0,0.0005945]
[1773012846571,0.03449456,66456.0,66447.0,0.0005945]
[1773012846734,0.03449456,66454.0,66447.0,0.0005945]
[1773012847379,0.03449456,66453.0,66439.0,0.07525601]
[1773012847541,0.29479269,66450.0,66440.0,0.07603314]
[1773012847748,0.00152,66457.0,66441.0,0.03219923]
[1773012847749,0.00152,66451.0,66441.0,0.03219923]
[1773012848572,0.07524454,66450.0,66442.0,0.0752536]
[1773012848775,0.07676376,66451.0,66442.0,0.0752536]
[1773012849292,0.07524376,66451.0,66442.0,0.0752536]
[1773012850943,0.07524376,66451.0,66447.0,0.0002]
[1773012851782,0.07522756,66465.0,66447.0,0.0002]
[1773012851958,0.29479269,66460.0,66447.0,0.0002]
[1773012852160,0.03395699,66457.0,66440.0,0.07623179]
[1773012852368,0.29479269,66454.0,66440.0,0.07623179]
[1773012852560,0.29479269,66452.0,66440.0,0.07623179]
[1773012852823,0.03395699,66451.0,66440.0,0.07623179]
[1773012853041,0.03395699,66450.0,66440.0,0.07623179]
[1773012853448,0.00152,66455.0,66442.0,0.30642558]
[1773012853612,0.00152,66455.0,66443.0,0.03433093]
[1773012853814,0.07524001,66454.0,66444.0,0.07525133]
[1773012854041,0.07524001,66454.0,66445.0,0.00152]
[1773012854820,0.109197,66454.0,66445.0,0.00152]
[1773012855913,0.32874968,66453.0,66445.0,0.07676951]
[1773012856112,0.03395699,66452.0,66445.0,0.07676951]
[1773012857049,0.07676001,66455.0,66445.0,0.07676951]
[1773012857824,0.03290508,66457.0,66445.0,0.07676951]
[1773012858261,0.03290508,66457.0,66445.0,0.07696951]
[1773012858661,0.07523548,66458.0,66445.0,0.07696951]
[1773012858899,0.07523548,66458.0,66446.0,0.03433093]
[1773012860054,0.00022001,66470.0,66449.0,0.30642558]
[1773012860205,0.075442,66470.0,66453.0,0.30642558]
[1773012860405,0.29479269,66467.0,66447.0,0.07524794]
[1773012860606,0.03395699,66464.0,66448.0,0.00152]
[1773012860808,0.29479269,66461.0,66449.0,0.00152]
[1773012861013,0.29479269,66465.0,66449.0,0.00152]
[1773012861232,0.32874968,66464.0,66449.0,0.00152]
[1773012861433,0.32874968,66464.0,66449.0,0.03585093]
[1773012861636,0.32874968,66464.0,66450.0,0.00152]
[1773012862245,0.4039795,66464.0,66451.0,0.07524341]
[1773012862572,0.07522869,66466.0,66452.0,0.03433093]
[1773012862723,0.07674379,66469.0,66454.0,0.03433093]
[1773012862923,0.07522379,66469.0,66455.0,0.03433093]
[1773012863300,0.07522379,66469.0,66454.0,0.30642558]
[1773012863301,0.07522379,66469.0,66457.0,0.03433093]
[1773012863617,0.29479269,66467.0,66458.0,0.00152]
[1773012864374,0.10918078,66469.0,66459.0,0.07523435]
[1773012865381,0.10918078,66469.0,66458.0,0.07675516]
[1773012866465,0.07521574,66476.0,66459.0,0.03433093]
[1773012866665,0.07521084,66480.0,66462.0,0.30642558]
[1773012866870,0.07521193,66479.0,66465.0,0.03433093]
[1773012867168,0.07543422,66477.0,66466.0,0.00152]
[1773012867368,0.29479269,66476.0,66466.0,0.00152]
[1773012867586,0.10939121,66477.0,66466.0,0.00152]
[1773012867818,0.10974563,66477.0,66466.0,0.00152]
[1773012868113,0.00022001,66476.0,66466.0,0.00152]
[1773012868469,0.07521624,66475.0,66461.0,0.00152]
[1773012868664,0.03395699,66471.0,66453.0,0.10977144]
[1773012868869,0.29479269,66468.0,66453.0,0.07544051]
[1773012869074,0.03395699,66465.0,66453.0,0.07544051]
[1773012869288,0.32874968,66465.0,66454.0,0.00152]
[1773012869493,0.32874968,66465.0,66455.0,0.00152]
[1773012870330,0.07543562,66476.0,66455.0,0.00152]
[1773012870331,0.00022001,66476.0,66459.0,0.30642558]
[1773012870532,0.07543525,66476.0,66462.0,0.30642558]
[1773012870870,0.07543525,66476.0,66464.0,0.03433093]
[1773012871370,0.07543515,66476.0,66464.0,0.03433093]
[1773012872387,0.07543515,66476.0,66465.0,0.00152]
[1773012872764,0.07543515,66476.0,66455.0,0.03433093]
[1773012872765,0.29727511,66473.0,66455.0,0.03433093]
[1773012872944,0.3312321,66472.0,66456.0,0.03585093]
[1773012873480,0.3312321,66472.0,66458.0,0.03433093]
[1773012873683,0.29727511,66472.0,66458.0,0.03433093]
[1773012874711,0.07522077,66471.0,66460.0,0.07523322]
[1773012875094,0.07522077,66471.0,66461.0,0.00152]
[1773012876706,0.37249588,66472.0,66459.0,0.00152]
[1773012876707,0.29727511,66468.0,66459.0,0.00152]
[1773012877074,0.29727511,66464.0,66454.0,0.00152]
[1773012877206,0.3312321,66462.0,66454.0,0.00152]
[1773012877389,0.00152,66472.0,66448.0,0.03433093]
[1773012877390,0.3312321,66460.0,66448.0,0.03433093]
[1773012877596,0.3312321,66460.0,66452.0,0.00152]
[1773012877908,0.3312321,66460.0,66451.0,0.0002]
[1773012878123,0.3312321,66460.0,66451.0,0.00172]
[1773012878323,0.3312321,66460.0,66451.0,0.0002]
[1773012878639,0.00152,66465.0,66451.0,0.0002]
[1773012878640,0.3312321,66459.0,66451.0,0.0002]
[1773012878848,0.07523548,66458.0,66451.0,0.00172]
[1773012879256,0.07523548,66458.0,66451.0,0.0002]
[1773012881193,0.29727511,66457.0,66446.0,0.0004404]
[1773012881461,0.03375287,66454.0,66446.0,0.0004404]
[1773012881661,0.29727511,66456.0,66446.0,0.0004404]
[1773012882037,0.33102798,66456.0,66446.0,0.0004404]
[1773012882422,0.33102798,66456.0,66446.0,0.00055859]
[1773012882990,0.07523888,66455.0,66446.0,0.00055859]
[1773012884512,0.07523888,66455.0,66447.0,0.03306307]
[1773012884917,0.07523435,66459.0,66448.0,0.0752468]
[1773012885115,0.07523435,66459.0,66449.0,0.03306307]
[1773012886319,0.07523435,66459.0,66455.0,0.00015]
[1773012886520,0.07523435,66459.0,66455.0,0.03321307]
[1773012887042,0.07523435,66459.0,66455.0,0.00015]
[1773012888116,0.07523435,66459.0,66449.0,0.090069]
[1773012888579,0.40626233,66459.0,66449.0,0.16683428]
[1773012888979,0.07523435,66459.0,66449.0,0.091589]
[1773012889180,0.03375287,66454.0,66447.0,0.0002]
[1773012889358,0.33102798,66452.0,66445.0,0.0002]
[1773012889561,0.33114627,66452.0,66445.0,0.0002]
[1773012889759,0.00011829,66452.0,66440.0,0.00043]
[1773012890007,0.00011829,66452.0,66440.0,0.07720559]
[1773012890008,0.33102798,66451.0,66440.0,0.07720559]
[1773012890182,0.33102798,66451.0,66440.0,0.00043]
[1773012890383,0.33102798,66451.0,66436.0,0.07697931]
[1773012890384,0.29727511,66449.0,66436.0,0.07697931]
[1773012890558,0.33102798,66448.0,66436.0,0.07693931]
[1773012890760,0.00152,66451.0,66437.0,0.32047402]
[1773012890945,0.00011829,66452.0,66438.0,0.03306307]
[1773012891182,0.07536057,66452.0,66440.0,0.03306307]
[1773012893282,0.07536057,66452.0,66442.0,0.03306307]
[1773012893483,0.07536057,66452.0,66443.0,0.00152]
[1773012894119,0.00011829,66452.0,66443.0,0.00152]
[1773012894323,0.07524013,66454.0,66444.0,0.03306307]
[1773012894522,0.00152,66459.0,66444.0,0.32059231]
[1773012894759,0.00152,66459.0,66445.0,0.03306307]
[1773012894937,0.03375287,66456.0,66446.0,0.00152]
[1773012895140,0.29727511,66454.0,66444.0,0.00011829]
[1773012895314,0.07524228,66452.0,66444.0,0.00163829]
[1773012895718,0.07524228,66452.0,66444.0,0.00011829]
[1773012898751,0.29727511,66451.0,66440.0,0.07545534]
[1773012898951,0.03375287,66450.0,66442.0,0.00152]
[1773012899720,0.2973934,66451.0,66442.0,0.00152]
[1773012899928,0.00011829,66451.0,66442.0,0.00152]
[1773012900936,0.29727511,66450.0,66441.0,0.00152]
[1773012901138,0.00011829,66451.0,64610.0,4.095e-05]
[1773012901139,0.03375287,66447.0,66428.0,0.07526901]
[1773012901383,0.03375287,66442.0,66427.0,0.07526957]
[1773012901594,0.0604038,66443.0,66421.0,0.00048]
[1773012901595,0.03375287,66438.0,66421.0,0.00048]
[1773012901741,0.03375287,66429.0,66416.0,0.00175]
[1773012902072,0.29727511,66426.0,66407.0,0.0002404]
[1773012902279,0.00152,66429.0,66407.0,0.0002404]
[1773012902280,0.29727511,66424.0,66407.0,0.0002404]
[1773012902481,0.03375287,66417.0,66407.0,0.0017604]
[1773012902659,0.29727511,66414.0,66405.0,0.00152]
[1773012902985,0.07528646,66413.0,66404.0,1e-08]
[1773012903953,0.07513646,66413.0,66404.0,1e-08]
[1773012904755,0.07513646,66413.0,66404.0,0.00152001]
[1773012905005,0.34373021,66413.0,66404.0,0.00152001]
[1773012905608,0.00010673,66414.0,66404.0,0.00152001]
[1773012905809,0.07528193,66417.0,66406.0,0.3059594]
[1773012906133,0.07528193,66417.0,66407.0,0.03306307]
[1773012906900,0.07528193,66419.0,66408.0,0.07529213]
[1773012907084,0.07528193,66419.0,66408.0,0.10779636]
[1773012907281,0.07527853,66420.0,66409.0,0.03250423]
[1773012907717,0.34373021,66426.0,66410.0,0.00152]
[1773012907884,0.03701995,66438.0,66413.0,0.03250423]
[1773012907885,0.00152,66428.0,66413.0,0.03250423]
[1773012908085,0.00152,66429.0,66413.0,0.03250423]
[1773012908287,0.00152,66429.0,66410.0,0.00152]
[1773012908288,0.31003694,66427.0,66410.0,0.00152]
[1773012908506,0.03209323,66424.0,66409.0,0.00152]
[1773012908707,0.31003694,66421.0,66409.0,0.00152]
[1773012908911,0.07527966,66419.0,66406.0,0.10581608]
[1773012909140,0.07527298,66425.0,66410.0,0.03040407]
[1773012909348,0.07527102,66427.0,66413.0,0.28735341]
[1773012909539,0.07527102,66427.0,66414.0,0.03040407]
[1773012909736,0.07527102,66427.0,66416.0,0.03040407]
[1773012909990,0.00152,66431.0,66416.0,0.28735341]
[1773012910197,0.00152,66431.0,66415.0,0.00152]
[1773012910198,0.00152,66431.0,66419.0,0.03040407]
[1773012910972,0.07526719,66430.0,66420.0,0.07527853]
[1773012911177,0.07526719,66430.0,66421.0,0.00152]
[1773012911994,0.07526719,66430.0,66418.0,0.07527853]
[1773012912292,0.07526719,66430.0,66419.0,0.00152]
[1773012913726,0.07526719,66430.0,66420.0,0.07527853]
[1773012913931,0.07526719,66430.0,66419.0,0.07679897]
[1773012915200,0.0754872,66430.0,66419.0,0.07679897]
[1773012915342,0.41647497,66430.0,66419.0,0.07679897]
[1773012915546,0.31003694,66427.0,66418.0,0.00152]
[1773012915770,0.31003694,66427.0,66409.0,0.00152]
[1773012915771,0.31003694,66422.0,66409.0,0.00152]
[1773012915971,0.31003694,66418.0,66407.0,0.00152]
[1773012916340,0.34098777,66417.0,66406.0,0.00011824]
[1773012916561,0.31003694,66417.0,66406.0,0.00011824]
[1773012916767,0.31003694,66417.0,66399.0,0.07530149]
[1773012916768,0.03095083,66414.0,66398.0,1e-08]
[1773012916891,0.31003694,66411.0,66392.0,0.00175]
[1773012917102,0.03095083,66408.0,66392.0,0.07745473]
[1773012917302,0.03095083,66404.0,66387.0,0.03077798]
[1773012917504,0.03095083,66404.0,66373.0,0.000281]
[1773012917505,0.03095083,66398.0,66373.0,0.000281]
[1773012917714,0.03095083,66386.0,66373.0,0.000281]
[1773012917925,0.07531368,66392.0,66373.0,0.07561275]
[1773012917926,0.00152,66385.0,66373.0,0.07561275]
[1773012918127,0.07531368,66392.0,66377.0,0.03040407]
[1773012918327,0.07531368,66392.0,66379.0,0.03040407]
[1773012918555,0.34098777,66391.0,66378.0,0.00152]
[1773012918769,0.07531368,66392.0,66378.0,0.00152]
[1773012919000,0.07531368,66392.0,66378.0,0.03192407]
[1773012919846,0.07531368,66392.0,66380.0,0.03040407]
[1773012920263,0.07531368,66392.0,66379.0,0.07532502]
[1773012921841,0.31003694,66391.0,66379.0,0.07532502]
[1773012922046,0.07531368,66392.0,66380.0,0.03040407]
[1773012922655,0.00126029,66394.0,66380.0,0.03040407]
[1773012922862,0.0768178,66403.0,66383.0,0.28735341]
[1773012923062,0.00152,66402.0,66386.0,0.03040407]
[1773012923440,0.42231014,66404.0,66384.0,0.28887341]
[1773012923441,0.38555094,66416.0,66388.0,0.03040407]
[1773012923706,0.31003694,66426.0,66393.0,0.07530914]
[1773012923908,0.00126025,66425.0,66397.0,0.03040407]
[1773012924195,0.00126025,66425.0,66402.0,0.28735341]
[1773012924196,0.00022001,66420.0,66402.0,0.28735341]
[1773012924412,0.00022001,66420.0,66405.0,0.03040407]
[1773012924613,0.00022001,66420.0,66403.0,0.03040407]
[1773012924754,0.31003694,66417.0,66394.0,0.03040407]
[1773012925115,0.31003694,66413.0,66395.0,0.00152]
[1773012925267,0.31003694,66413.0,66395.0,0.03192407]
[1773012925473,0.31155694,66413.0,66395.0,0.03192407]
[1773012925674,0.31155694,66413.0,66397.0,0.001]
[1773012926132,0.38532453,66412.0,66396.0,0.07530574]
[1773012926516,0.38532453,66412.0,66393.0,0.03040407]
[1773012926517,0.31003694,66410.0,66393.0,0.03040407]
[1773012926714,0.03095083,66409.0,66392.0,0.07554002]
[1773012926913,0.31003694,66406.0,66392.0,0.00023]
[1773012927115,0.34098777,66404.0,66392.0,0.00023]
[1773012927298,0.00152,66405.0,66392.0,0.07554007]
[1773012927500,0.00152,66405.0,66393.0,0.03040407]
[1773012927724,0.00152,66405.0,66392.0,0.07554007]
[1773012927928,0.00152,66410.0,66394.0,0.28735341]
[1773012928126,0.07529099,66409.0,66396.0,0.07530574]
[1773012928716,0.38532793,66409.0,66396.0,0.07530574]
[1773012929744,0.38532793,66409.0,66395.0,0.07530574]
[1773012929951,0.10624182,66409.0,66395.0,0.07530574]
[1773012930303,0.3853302,66407.0,66394.0,0.07530745]
[1773012930508,0.31003694,66405.0,66392.0,0.00023]
[1773012930725,0.34098777,66405.0,66392.0,0.00023]
[1773012930901,0.31003694,66403.0,66392.0,0.07553993]
[1773012931059,0.12204707,66403.0,66392.0,0.07553993]
[1773012932075,0.07529893,66402.0,66392.0,0.07553993]
[1773012932274,0.38533587,66402.0,66392.0,0.07553993]
[1773012932614,0.03095083,66401.0,66392.0,0.00023]
[1773012932816,0.03095083,66400.0,66388.0,0.07570914]
[1773012933028,0.29541166,66398.0,66379.0,0.07532502]
[1773012933344,0.29541166,66396.0,66380.0,0.00152]
[1773012933549,0.00152,66397.0,66381.0,0.03040407]
[1773012933670,0.07529893,66402.0,66381.0,0.03040407]
[1773012933890,0.07529893,66402.0,66385.0,0.03040407]
[1773012934093,0.07681893,66402.0,66386.0,0.03192407]
[1773012934299,0.00152,66402.0,66389.0,0.30759848]
[1773012934528,0.00152,66402.0,66389.0,0.03040407]
[1773012935194,0.001,66400.0,66389.0,0.03040407]
[1773012935759,0.00152,66402.0,66389.0,0.03040407]
[1773012936396,0.07530007,66401.0,66390.0,0.07531254]
[1773012937448,0.07530003,66402.0,66391.0,0.03040407]
[1773012938131,0.07655726,66404.0,66393.0,0.03040407]
[1773012938558,0.07655726,66404.0,66394.0,0.075308]
[1773012938735,0.07655726,66404.0,66394.0,0.10571207]
[1773012939699,0.32573162,66417.0,66394.0,0.075308]
[1773012939905,0.32573162,66417.0,66398.0,0.30759848]
[1773012939906,0.00126023,66415.0,66398.0,0.30759848]
[1773012940138,0.00126023,66415.0,66401.0,0.03073373]
[1773012941160,0.07528533,66414.0,66402.0,0.07529893]
[1773012941311,0.0756799,66414.0,66403.0,0.03073373]
[1773012942367,0.00022001,66409.0,66403.0,0.03073373]
[1773012943131,0.00022001,66409.0,66404.0,0.07529666]
[1773012943331,0.00022001,66409.0,66405.0,0.00015]
[1773012943588,0.00022001,66409.0,66405.0,0.03088373]
[1773012943791,0.29541166,66408.0,66386.0,0.07531708]
[1773012944126,0.03031996,66403.0,66388.0,0.00152]
[1773012944272,0.03031996,66399.0,66389.0,0.00152]
[1773012944472,0.03031996,66397.0,66386.0,0.07531708]
[1773012944684,0.03031996,66397.0,66389.0,0.00152]
[1773012945058,0.03031996,66397.0,66386.0,0.07631708]
[1773012945297,0.07530574,66396.0,66387.0,0.00152]
[1773012945533,0.07530574,66396.0,66326.0,0.44643811]
[1773012945702,0.03031996,66392.0,66375.0,0.07532945]
[1773012945877,0.29541166,66389.0,66375.0,0.07532945]
[1773012946074,0.03031996,66386.0,66375.0,0.07684945]
[1773012946276,0.08752697,66396.0,66378.0,0.07552502]
[1773012946277,0.0122169,66394.0,66378.0,0.07552502]
[1773012946541,0.0122169,66394.0,66380.0,0.03073373]
[1773012946937,0.04253686,66394.0,66380.0,0.00011842]
[1773012947239,0.07530914,66393.0,66381.0,0.03073373]
[1773012948004,0.01217511,66392.0,66381.0,0.03073373]
[1773012948206,0.01217511,66392.0,66380.0,0.00011842]
[1773012948407,0.04249507,66392.0,66380.0,0.00011842]
[1773012949436,0.07531141,66391.0,66380.0,0.00011842]
[1773012950956,0.07531141,66391.0,66380.0,0.00031842]
[1773012951359,0.10563364,66389.0,66380.0,0.00031842]
[1773012951729,0.03031996,66387.0,66380.0,0.00031842]
[1773012952094,0.03031996,66387.0,66380.0,0.07716216]
[1773012952297,0.03031996,66387.0,66380.0,0.00183842]
[1773012952457,0.03031996,66387.0,66380.0,0.00031842]
[1773012952894,0.29541166,66386.0,66378.0,0.0002]
[1773012953189,0.03031996,66385.0,66378.0,0.0002]
[1773012953411,0.07531935,66384.0,66378.0,0.0002]
[1773012953641,0.07531935,66384.0,66372.0,0.00048]
[1773012953642,0.03031996,66382.0,66372.0,0.00048]
[1773012953790,0.03031996,66380.0,66372.0,0.00048]
[1773012954414,0.29541166,66380.0,66372.0,0.00048]
[1773012954599,0.03031996,66378.0,66370.0,0.0120069]